Workbook

Sheet CALCULATE
B2: LIGHTING INVESTMENT & OPERATING COST CALCULATOR *
B7: ROOM | M7: APPLICATION / OPERATIONAL DATA
B8: WIDTH | C8: LENGTH | D8: HEIGHT mt. | I8: CAVITY REFLECTANCES | L8: INDEX | M8: OPERATION PERIOD | P8: TARGET ILLUMINANCE LEVEL | T8: WORKING DAYS PER YEAR | X8: AVERAGE LIGHTS-ON HOURS PER DAY | AC8: ENERGY UNIT COST
B9: METER | C9: METER | D9: WORK PLANE | G9: MOUNTING | I9: CEILING | J9: WALL | K9: FLOOR | L9: RI - K | M9: YEARS | P9: LUX ( average on workıng plane ) | T9: DAYS | X9: HOURS | AC9: EURO / kWh
B10: 9 | C10: 16 | D10: 0.8 | G10: 2.75 | I10: 70 | J10: 50 | K10: 20 | L10: =(B10*C10)/((G10-D10)*(B10+C10)) -> 2.953846154 | M10: 6 | P10: 400 | T10: 252 | X10: 6.5 | AC10: 0.25
B11: * This calculator is intended to provide the user with an approximation of the optical & electrical average data, luminaire investment & operation (energy) cost levels, and an estimated return on investment of different/alternative lighting systems via energy savings in comparison to LIBUS. The given data (with the exception of LIBUS data) cannot be evaluated as specific information about any luminaire or brand of luminaire.
B12: * All white cells in the “variables” table must be filled to obtain the target data in the table below. If you have any questions, please e-mail project@libuslighting.com. The LIBUS team will gladly offer professional project support at no cost for LIBUS brand luminaires.
B15: LUMINAIRE DATA | G15: FLUORESCENT | I15: LED PANEL | L15: LIBUS SBL13WB 600 x 600 / 625 x 625 mm
C16: LUMINAIRE FAMILY | G16: 4 x 18 Watt | H16: 4 x 14 Watt | I16: EDGE - LIT | J16: BACK-LIT | L16: STANDARD | Q16: E-WHITE | V16: E-SILVER | AA16: PERFORMANCE
G17: T26 (T8) | H17: T16 (T5) | I17: UNDERLAY COVER | L17: LSS | N17: LSP | Q17: LWS | S17: LWP | V17: LES | X17: LEP | AA17: LPS | AC17: LPP
G18: electronic balast | I18: opal diffuser | K18: micro prism | L18: BL | M18: CT | N18: BL | O18: CT | P18: MC | Q18: BL | R18: CT | S18: BL | T18: CT | U18: MC | V18: BL | W18: CT | X18: BL | Y18: CT | Z18: MC | AA18: BL | AB18: CT | AC18: BL | AD18: CT | AE18: MC
C19: SYSTEM POWER | E19: : | F19: watt | G19: 81 | H19: =H20*(G19/G20) -> 63 | I19: 40 | J19: 35 | K19: 27 | L19: 27 | M19: 27 | N19: 25 | O19: 25 | P19: 27 | Q19: 25 | R19: 25 | S19: 21 | T19: 21 | U19: 25 | V19: 25 | W19: 25 | X19: 21 | Y19: 21 | Z19: 25 | AA19: 21 | AB19: 21 | AC19: 19 | AD19: 19 | AE19: 21
C20: ACTIVE POWER | E20: : | F20: watt | G20: 72 | H20: =4*14 -> 56 | I20: =I19*0.86 -> 34.4 | J20: =J19*0.865 -> 30.275 | K20: =K19*0.874 -> 23.598 | L20: 23.598 | M20: =M19*0.874 -> 23.598 | N20: 21.85 | O20: 21.85 | P20: 23.598 | Q20: 21.85 | R20: 21.85 | S20: =S19*0.89 -> 18.69 | T20: =T19*0.89 -> 18.69 | U20: =U19*0.89 -> 22.25 | V20: =V19*0.874 -> 21.85 | W20: =W19*0.874 -> 21.85 | X20: =X19*0.89 -> 18.69 | Y20: =Y19*0.89 -> 18.69 | Z20: =Z19*0.89 -> 22.25 | AA20: =AA19*0.874 -> 18.354 | AB20: 18.354 | AC20: 16.606 | AD20: 16.606 | AE20: 18.354
C21: TOTAL LAMP FLUX | E21: : | F21: lumen | G21: =5400 -> 5400 | H21: =5400 -> 5400 | I21: =I20*160 -> 5504 | J21: =J20*165 -> 4995.375 | K21: 3893.67 | L21: =L20*165 -> 3893.67 | M21: =M20*165 -> 3893.67 | N21: =N20*170 -> 3714.5 | O21: =O20*170 -> 3714.5 | P21: 4011.66 | Q21: =Q20*170 -> 3714.5 | R21: =R20*170 -> 3714.5 | S21: =S20*175 -> 3270.75 | T21: 3270.75 | U21: 3893.75 | V21: =V20*170 -> 3714.5 | W21: =W20*170 -> 3714.5 | X21: 3270.75 | Y21: 3270.75 | Z21: 3893.75 | AA21: =AA20*180 -> 3303.72 | AB21: =AB20*180 -> 3303.72 | AC21: =AC20*185 -> 3072.11 | AD21: 3072.11 | AE21: 3395.49
C22: LUMINAIRE L.O.R. | E22: : | F22: % | G22: 57 | H22: 62 | I22: 61 | J22: 66 | K22: 72.7 | L22: 73.8 | M22: 72.7 | N22: 73.8 | O22: 72.7 | P22: 72.2 | Q22: 87.6 | R22: 86.3 | S22: 87.6 | T22: 86.3 | U22: 85.1 | V22: 86.8 | W22: 85.5 | X22: 86.8 | Y22: 85.5 | Z22: 84.3 | AA22: 95.3 | AB22: 93.9 | AC22: 95.3 | AD22: 93.9 | AE22: 92.5
C23: LUMINAIRE LUMINOUS FLUX | E23: : | F23: lumen | G23: =G21*(G22/100) -> 3078 | H23: =H21*(H22/100) -> 3348 | I23: =I21*(I22/100) -> 3357.44 | J23: =J21*(J22/100) -> 3296.9475 | K23: =K21*(K22/100) -> 2830.69809 | L23: =L21*(L22/100) -> 2873.52846 | M23: =M21*(M22/100) -> 2830.69809 | N23: =N21*(N22/100) -> 2741.301 | O23: 2700.4415 | P23: 2896.41852 | Q23: 3253.902 | R23: 3205.6135 | S23: 2865.177 | T23: 2822.65725 | U23: 3313.58125 | V23: 3224.186 | W23: 3175.8975 | X23: 2839.011 | Y23: 2796.49125 | Z23: 3282.43125 | AA23: 3148.44516 | AB23: 3102.19308 | AC23: 2927.72083 | AD23: 2884.71129 | AE23: =AE21*(AE22/100) -> 3140.82825
C24: U.F. ave. | E24: : | F24: % | G24: 82 | H24: 82 | I24: 76.73 | J24: 75.97 | K24: 83 | L24: 91.2 | M24: 90.7 | N24: 91.6 | O24: 91.06 | P24: 86.1 | Q24: 84.8 | R24: 84.4 | S24: 84.6 | T24: 85.08 | U24: 84.95 | V24: 96.94 | W24: 92.69 | X24: 93.82 | Y24: 93.02 | Z24: 87.06 | AA24: 93.82 | AB24: 89.8 | AC24: 93.8 | AD24: 93 | AE24: 84.4
C25: EFFECTIVE LUMINOUS FLUX | E25: : | F25: lumen | G25: =G23*(G24/100) -> 2523.96 | H25: =H23*(H24/100) -> 2745.36 | I25: 2576.163712 | J25: 2504.691016 | K25: 2349.479415 | L25: 2620.657956 | M25: =M23*(M24/100) -> 2567.443168 | N25: 2511.031716 | O25: 2459.02203 | P25: 2493.816346 | Q25: 2759.308896 | R25: 2705.537794 | S25: 2423.939742 | T25: 2401.516788 | U25: 2814.887272 | V25: 3125.525908 | W25: 2943.739393 | X25: 2663.56012 | Y25: 2601.296161 | Z25: 2857.684646 | AA25: =AA23*(AA24/100) -> 2953.871249 | AB25: 2785.769386 | AC25: 2746.202139 | AD25: 2682.7815 | AE25: 2650.859043
C26: UGR (ave.) | E26: : | F26: < | G26: 15-17 | H26: 15-17 | I26: 18-19 | J26: 19-21 | K26: 18-19 | L26: 8.9 | M26: 8.9 | N26: 9.5 | O26: 9.4 | P26: 11.7 | Q26: 13 | R26: 13.5 | S26: 13.5 | T26: 13.2 | U26: 12.7 | V26: 8.1 | W26: 8.8 | X26: 8.2 | Y26: 8.6 | Z26: 10.9 | AA26: 8.2 | AB26: 8.5 | AC26: 8.6 | AD26: 8.6 | AE26: 11
C27: EFFICACY | E27: : | F27: lm / w | G27: =G23/G19 -> 38 | H27: =H23/H19 -> 53.14285714 | I27: =I23/I19 -> 83.936 | J27: =J23/J19 -> 94.1985 | K27: 115 | L27: 116 | M27: 115 | N27: 126 | O27: 125 | P27: 119 | Q27: 135 | R27: 133 | S27: 147 | T27: 145 | U27: 138 | V27: 134 | W27: 133 | X27: 145 | Y27: 144 | Z27: 137 | AA27: 156 | AB27: 156 | AC27: 169 | AD27: 169 | AE27: 160
C28: LLF : light loss factor = | G28: 0.8 | H28: 0.81 | I28: 0.75 | J28: 0.85 | K28: 0.865 | L28: 0.88 | M28: 0.89 | N28: 0.88 | O28: 0.89 | P28: 0.89 | Q28: =L28+0.01 -> 0.89 | R28: =M28+0.01 -> 0.9 | S28: 0.89 | T28: 0.9 | U28: 0.9 | V28: 0.89 | W28: 0.9 | X28: 0.89 | Y28: 0.9 | Z28: 0.9 | AA28: =V28+0.01 -> 0.9 | AB28: =W28+0.01 -> 0.91 | AC28: 0.9 | AD28: 0.91 | AE28: 0.91
C29: n : no.of lamps / luminaire = | G29: 4 | H29: 4 | I29: 120 | J29: 169 | K29: 169 | L29: 169 | M29: 169 | N29: 169 | O29: 169 | P29: 169 | Q29: 169 | R29: 169 | S29: 169 | T29: 169 | U29: 169 | V29: 169 | W29: 169 | X29: 169 | Y29: 169 | Z29: 169 | AA29: 169 | AB29: 169 | AC29: 169 | AD29: 169 | AE29: 169
C30: F : luminous flux per lamp = (initial values) | G30: =G23/G29 -> 769.5 | H30: =H23/H29 -> 837 | I30: 27.97866667 | J30: 19.50856509 | K30: 16.74969284 | L30: 17.00312698 | M30: 16.74969284 | N30: 16.22071598 | O30: 15.97894379 | P30: 17.13857112 | Q30: 19.25385799 | R30: 18.96812722 | S30: 16.95371006 | T30: 16.70211391 | U30: 19.60698964 | V30: 19.07802367 | W30: 18.7922929 | X30: 16.79888166 | Y30: 16.5472855 | Z30: 19.42267012 | AA30: 18.62985302 | AB30: 18.35617207 | AC30: 17.32379189 | AD30: 17.06929757 | AE30: =AE23/AE29 -> 18.58478254
C31: UF : RI = 2.0 / C:70 - W:50 - F:20 = | G31: 0.912578 | H31: 0.912578 | I31: 0.823546 | J31: 0.84547013 | K31: 0.92 | L31: 1 | M31: 1 | N31: 1 | O31: 1 | P31: 0.96 | Q31: 0.95 | R31: 0.95 | S31: 0.95 | T31: 0.95 | U31: 0.95 | V31: 1.04 | W31: 1.01 | X31: 1.02 | Y31: 1.01 | Z31: 0.96 | AA31: 1.02 | AB31: 0.99 | AC31: 1.02 | AD31: 1.01 | AE31: 0.96

Sheet RESULTS
D2: ESTIMATED CALCULATION RESULTS FOR THE GIVEN PROJECT *
D5: =CALCULATE!M10 -> 6 | E5: YEARS | I5: FLUORESCENT | K5: LED PANEL | N5: LIBUS SBL13WB 600 x 600 / 625 x 625 mm
D6: OPERATION PERIOD | I6: 4 x 18 Watt | J6: 4 x 14 Watt | K6: EDGE - LIT | L6: BACK-LIT | N6: STANDARD | S6: E-WHITE | X6: E-SILVER | AC6: PERFORMANCE
D7: LUMINAIRE FAMILY | I7: T26 (T8) | J7: T16 (T5) | K7: UNDERLAY COVER | N7: LSS | P7: LSP | S7: LWS | U7: LWP | X7: LES | Z7: LEP | AC7: LPS | AE7: LPP
I8: electronic balast | K8: opal diffuser | M8: micro prism | N8: BL | O8: CT | P8: BL | Q8: CT | R8: MC | S8: BL | T8: CT | U8: BL | V8: CT | W8: MC | X8: BL | Y8: CT | Z8: BL | AA8: CT | AB8: MC | AC8: BL | AD8: CT | AE8: BL | AF8: CT | AG8: MC
D9: NUMBER of LUMINAIRES NEEDED | H9: PIECES | I9: =(CALCULATE!$P$10*(CALCULATE!$B$10*CALCULATE!$C$10))/(CALCULATE!G28*(CALCULATE!G24/100)*CALCULATE!G23) -> 28.52660106 | J9: =(CALCULATE!$P$10*(CALCULATE!$B$10*CALCULATE!$C$10))/(CALCULATE!H28*(CALCULATE!H24/100)*CALCULATE!H23) -> 25.90229009 | K9: =(CALCULATE!$P$10*(CALCULATE!$B$10*CALCULATE!$C$10))/(CALCULATE!I28*(CALCULATE!I24/100)*CALCULATE!I23) -> 29.81176997 | L9: =(CALCULATE!$P$10*(CALCULATE!$B$10*CALCULATE!$C$10))/(CALCULATE!J28*(CALCULATE!J24/100)*CALCULATE!J23) -> 27.05511596 | M9: =(CALCULATE!$P$10*(CALCULATE!$B$10*CALCULATE!$C$10))/(CALCULATE!K28*(CALCULATE!K24/100)*CALCULATE!K23) -> 28.34227657 | N9: =(CALCULATE!$P$10*(CALCULATE!$B$10*CALCULATE!$C$10))/(CALCULATE!L28*(CALCULATE!L24/100)*CALCULATE!L23) -> 24.97637867 | O9: =(CALCULATE!$P$10*(CALCULATE!$B$10*CALCULATE!$C$10))/(CALCULATE!M28*(CALCULATE!M24/100)*CALCULATE!M23) -> 25.20760807 | P9: =(CALCULATE!$P$10*(CALCULATE!$B$10*CALCULATE!$C$10))/(CALCULATE!N28*(CALCULATE!N24/100)*CALCULATE!N23) -> 26.0667936 | Q9: =(CALCULATE!$P$10*(CALCULATE!$B$10*CALCULATE!$C$10))/(CALCULATE!O28*(CALCULATE!O24/100)*CALCULATE!O23) -> 26.3190408 | R9: =(CALCULATE!$P$10*(CALCULATE!$B$10*CALCULATE!$C$10))/(CALCULATE!P28*(CALCULATE!P24/100)*CALCULATE!P23) -> 25.95183131 | S9: =(CALCULATE!$P$10*(CALCULATE!$B$10*CALCULATE!$C$10))/(CALCULATE!Q28*(CALCULATE!Q24/100)*CALCULATE!Q23) -> 23.45482277 | T9: =(CALCULATE!$P$10*(CALCULATE!$B$10*CALCULATE!$C$10))/(CALCULATE!R28*(CALCULATE!R24/100)*CALCULATE!R23) -> 23.65518609 | U9: =(CALCULATE!$P$10*(CALCULATE!$B$10*CALCULATE!$C$10))/(CALCULATE!S28*(CALCULATE!S24/100)*CALCULATE!S23) -> 26.69996288 | V9: =(CALCULATE!$P$10*(CALCULATE!$B$10*CALCULATE!$C$10))/(CALCULATE!T28*(CALCULATE!T24/100)*CALCULATE!T23) -> 26.64982411 | W9: =(CALCULATE!$P$10*(CALCULATE!$B$10*CALCULATE!$C$10))/(CALCULATE!U28*(CALCULATE!U24/100)*CALCULATE!U23) -> 22.73625684 | X9: =(CALCULATE!$P$10*(CALCULATE!$B$10*CALCULATE!$C$10))/(CALCULATE!V28*(CALCULATE!V24/100)*CALCULATE!V23) -> 20.70662763 | Y9: =(CALCULATE!$P$10*(CALCULATE!$B$10*CALCULATE!$C$10))/(CALCULATE!W28*(CALCULATE!W24/100)*CALCULATE!W23) -> 21.74105499 | Z9: =(CALCULATE!$P$10*(CALCULATE!$B$10*CALCULATE!$C$10))/(CALCULATE!X28*(CALCULATE!X24/100)*CALCULATE!X23) -> 24.29796896 | AA9: =(CALCULATE!$P$10*(CALCULATE!$B$10*CALCULATE!$C$10))/(CALCULATE!Y28*(CALCULATE!Y24/100)*CALCULATE!Y23) -> 24.60311939 | AB9: =(CALCULATE!$P$10*(CALCULATE!$B$10*CALCULATE!$C$10))/(CALCULATE!Z28*(CALCULATE!Z24/100)*CALCULATE!Z23) -> 22.39575318 | AC9: =(CALCULATE!$P$10*(CALCULATE!$B$10*CALCULATE!$C$10))/(CALCULATE!AA28*(CALCULATE!AA24/100)*CALCULATE!AA23) -> 21.66648259 | AD9: =(CALCULATE!$P$10*(CALCULATE!$B$10*CALCULATE!$C$10))/(CALCULATE!AB28*(CALCULATE!AB24/100)*CALCULATE!AB23) -> 22.72144407 | AE9: =(CALCULATE!$P$10*(CALCULATE!$B$10*CALCULATE!$C$10))/(CALCULATE!AC28*(CALCULATE!AC24/100)*CALCULATE!AC23) -> 23.3049123 | AF9: =(CALCULATE!$P$10*(CALCULATE!$B$10*CALCULATE!$C$10))/(CALCULATE!AD28*(CALCULATE!AD24/100)*CALCULATE!AD23) -> 23.59368562 | AG9: =(CALCULATE!$P$10*(CALCULATE!$B$10*CALCULATE!$C$10))/(CALCULATE!AE28*(CALCULATE!AE24/100)*CALCULATE!AE23) -> 23.87780801
D10: ESTIMATED UNIT LUMINAIRE COST | H10: EURO | I10: 40 | J10: 45 | K10: 48 | L10: 48 | M10: 60 | N10: 62 | O10: 67 | P10: 68 | Q10: 74 | R10: 86 | S10: 68 | T10: 73 | U10: 72 | V10: 78 | W10: 91 | X10: 71 | Y10: 76 | Z10: 75 | AA10: 80 | AB10: 93 | AC10: 86 | AD10: 92 | AE10: 97 | AF10: 102 | AG10: 109
D11: TOTAL LUMINAIRE INVESTMENT COST | I11: =I9*I10 -> 1141.064042 | J11: =J9*J10 -> 1165.603054 | K11: 1430.964959 | L11: 1298.645566 | M11: 1700.536594 | N11: =N9*N10 -> 1548.535477 | O11: 1688.909741 | P11: 1772.541965 | Q11: 1947.609019 | R11: 2231.857493 | S11: 1594.927948 | T11: 1726.828585 | U11: 1922.397327 | V11: 2078.68628 | W11: 2068.999373 | X11: 1470.170562 | Y11: 1652.320179 | Z11: 1822.347672 | AA11: 1968.249551 | AB11: 2082.805046 | AC11: 1863.317503 | AD11: 2090.372855 | AE11: 2260.576493 | AF11: 2406.555933 | AG11: 2602.681073
D12: ANNUAL ENERGY CONSUMPTION | H12: kWh | I12: =((I9*CALCULATE!G19)/1000)*CALCULATE!$T$10*CALCULATE!$X$10 -> 3784.852375 | J12: =((J9*CALCULATE!H19)/1000)*CALCULATE!$T$10*CALCULATE!$X$10 -> 2672.960923 | K12: =((K9*CALCULATE!I19)/1000)*CALCULATE!$T$10*CALCULATE!$X$10 -> 1953.267169 | L12: =((L9*CALCULATE!J19)/1000)*CALCULATE!$T$10*CALCULATE!$X$10 -> 1551.069798 | M12: =((M9*CALCULATE!K19)/1000)*CALCULATE!$T$10*CALCULATE!$X$10 -> 1253.465524 | N12: =((N9*CALCULATE!L19)/1000)*CALCULATE!$T$10*CALCULATE!$X$10 -> 1104.605323 | O12: =((O9*CALCULATE!M19)/1000)*CALCULATE!$T$10*CALCULATE!$X$10 -> 1114.831675 | P12: =((P9*CALCULATE!N19)/1000)*CALCULATE!$T$10*CALCULATE!$X$10 -> 1067.435198 | Q12: =((Q9*CALCULATE!O19)/1000)*CALCULATE!$T$10*CALCULATE!$X$10 -> 1077.764721 | R12: =((R9*CALCULATE!P19)/1000)*CALCULATE!$T$10*CALCULATE!$X$10 -> 1147.745692 | S12: =((S9*CALCULATE!Q19)/1000)*CALCULATE!$T$10*CALCULATE!$X$10 -> 960.4749924 | T12: =((T9*CALCULATE!R19)/1000)*CALCULATE!$T$10*CALCULATE!$X$10 -> 968.6798705 | U12: =((U9*CALCULATE!S19)/1000)*CALCULATE!$T$10*CALCULATE!$X$10 -> 918.425323 | V12: =((V9*CALCULATE!T19)/1000)*CALCULATE!$T$10*CALCULATE!$X$10 -> 916.7006497 | W12: =((W9*CALCULATE!U19)/1000)*CALCULATE!$T$10*CALCULATE!$X$10 -> 931.0497178 | X12: =((X9*CALCULATE!V19)/1000)*CALCULATE!$T$10*CALCULATE!$X$10 -> 847.9364013 | Y12: =((Y9*CALCULATE!W19)/1000)*CALCULATE!$T$10*CALCULATE!$X$10 -> 890.2962016 | Z12: =((Z9*CALCULATE!X19)/1000)*CALCULATE!$T$10*CALCULATE!$X$10 -> 835.8015363 | AA12: =((AA9*CALCULATE!Y19)/1000)*CALCULATE!$T$10*CALCULATE!$X$10 -> 846.2981006 | AB12: =((AB9*CALCULATE!Z19)/1000)*CALCULATE!$T$10*CALCULATE!$X$10 -> 917.1060927 | AC12: =((AC9*CALCULATE!AA19)/1000)*CALCULATE!$T$10*CALCULATE!$X$10 -> 745.2836682 | AD12: =((AD9*CALCULATE!AB19)/1000)*CALCULATE!$T$10*CALCULATE!$X$10 -> 781.5722332 | AE12: =((AE9*CALCULATE!AC19)/1000)*CALCULATE!$T$10*CALCULATE!$X$10 -> 725.2954806 | AF12: =((AF9*CALCULATE!AD19)/1000)*CALCULATE!$T$10*CALCULATE!$X$10 -> 734.2826839 | AG12: =((AG9*CALCULATE!AE19)/1000)*CALCULATE!$T$10*CALCULATE!$X$10 -> 821.34884
D13: ANNUAL ENERGY COST PER LUMINAIRE | H13: EURO | I13: =(I12/I9)*CALCULATE!$AC$10 -> 33.1695 | J13: =(J12/J9)*CALCULATE!$AC$10 -> 25.7985 | K13: =(K12/K9)*CALCULATE!$AC$10 -> 16.38 | L13: =(L12/L9)*CALCULATE!$AC$10 -> 14.3325 | M13: =(M12/M9)*CALCULATE!$AC$10 -> 11.0565 | N13: =(N12/N9)*CALCULATE!$AC$10 -> 11.0565 | O13: =(O12/O9)*CALCULATE!$AC$10 -> 11.0565 | P13: =(P12/P9)*CALCULATE!$AC$10 -> 10.2375 | Q13: =(Q12/Q9)*CALCULATE!$AC$10 -> 10.2375 | R13: =(R12/R9)*CALCULATE!$AC$10 -> 11.0565 | S13: =(S12/S9)*CALCULATE!$AC$10 -> 10.2375 | T13: =(T12/T9)*CALCULATE!$AC$10 -> 10.2375 | U13: =(U12/U9)*CALCULATE!$AC$10 -> 8.5995 | V13: =(V12/V9)*CALCULATE!$AC$10 -> 8.5995 | W13: =(W12/W9)*CALCULATE!$AC$10 -> 10.2375 | X13: =(X12/X9)*CALCULATE!$AC$10 -> 10.2375 | Y13: =(Y12/Y9)*CALCULATE!$AC$10 -> 10.2375 | Z13: =(Z12/Z9)*CALCULATE!$AC$10 -> 8.5995 | AA13: =(AA12/AA9)*CALCULATE!$AC$10 -> 8.5995 | AB13: =(AB12/AB9)*CALCULATE!$AC$10 -> 10.2375 | AC13: =(AC12/AC9)*CALCULATE!$AC$10 -> 8.5995 | AD13: =(AD12/AD9)*CALCULATE!$AC$10 -> 8.5995 | AE13: =(AE12/AE9)*CALCULATE!$AC$10 -> 7.7805 | AF13: =(AF12/AF9)*CALCULATE!$AC$10 -> 7.7805 | AG13: =(AG12/AG9)*CALCULATE!$AC$10 -> 8.5995
D14: TOTAL ANNUAL ENERGY COST OF LIGHTING | I14: =I13*I9 -> 946.2130937 | J14: =J13*J9 -> 668.2402308 | K14: =K13*K9 -> 488.3167922 | L14: 387.7674495 | M14: 313.3663809 | N14: 276.1513307 | O14: 278.7079187 | P14: 266.8587994 | Q14: 269.4411802 | R14: 286.9364229 | S14: 240.1187481 | T14: 242.1699676 | U14: 229.6063307 | V14: 229.1751624 | W14: 232.7624294 | X14: 211.9841003 | Y14: 222.5740504 | Z14: 208.9503841 | AA14: 211.5745252 | AB14: 229.2765232 | AC14: 186.3209171 | AD14: 195.3930583 | AE14: 181.3238702 | AF14: 183.570671 | AG14: 205.33721
D15: TOTAL LIGHTING INVESTMENT + ENERGY COST IN GIVEN PERIOD | I15: =I11+(I14*$D$5) -> 6818.342604 | J15: =J11+(J14*$D$5) -> 5175.044439 | K15: 4360.865712 | L15: 3625.250263 | M15: =M11+(M14*$D$5) -> 3580.73488 | N15: 3205.443462 | O15: 3361.157253 | P15: 3373.694761 | Q15: 3564.2561 | R15: 3953.47603 | S15: 3035.640437 | T15: 3179.848391 | U15: 3300.035312 | V15: 3453.737255 | W15: 3465.573949 | X15: 2742.075163 | Y15: 2987.764481 | Z15: 3076.049976 | AA15: 3237.696702 | AB15: 3458.464185 | AC15: 2981.243005 | AD15: 3262.731204 | AE15: 3348.519714 | AF15: 3507.979959 | AG15: 3834.704333
D17: * This calculator is intended to provide the user with an approximation of the optical & electrical average data, luminaire investment & operation (energy) cost levels, and an estimated return on investment of different/alternative lighting systems via energy savings in comparison to LIBUS. The given data (with the exception of LIBUS data) cannot be evaluated as specific information about any luminaire or brand of luminaire.
